[Event "Reykjavik Open 2025"]
[Site "Reykjavik"]
[Date "2025.04.10"]
[Round "2.30"]
[White "Cramling Bellon, Anna"]
[Black "Arnalds, Stefan"]
[Result "1-0"]
[Annotator "NA"]
[ECO "E08"]
[WhiteElo "2046"]
[BlackElo "1850"]
[PlyCount "114"]
[EventDate "2025.04.09"]
[EventType "swiss"]
[EventCountry "ISL"]
[SourceTitle "playchess.com"]
[Source "ChessBase"]
[SourceQuality "1"]
[TimeControl "40/5400+30:1800+30"]

1. d4 {[%emt 0:00:06]} Nf6 {[%emt 0:08:59]} 2. c4 {[%emt 0:00:05]} e6 {[%emt 0:00:23]} 3. Nf3 {[%emt 0:00:20]} d5 {[%emt 0:01:27]} 4. Nc3 {[%emt 0:01:39]} Be7 {[%emt 0:03:55]} 5. g3 {[%emt 0:06:43]} O-O {[%emt 0:17:11]} 6. Bg2 {[%emt 0:00:22]} c6 {[%emt 0:11:17]} 7. O-O {[%emt 0:07:32]} Nbd7 {[%emt 0:10:15]} 8. b3 {[%emt 0:03:45]} b6 {[%emt 0:01:05]} 9. Bb2 {[%emt 0:01:15]} Bb7 {[%emt 0:00:15]} 10. Qc2 {[%emt 0:21:00]} Rc8 {[%emt 0:00:59]} 11. Rad1 {[%emt 0:08:12]} Qc7 {[%emt 0:03:09]} 12. e4 {[%emt 0:09:05]} Nxe4 {[%emt 0:11:59]} 13. Nxe4 {[%emt 0:00:08]} dxe4 {[%emt 0:00:04]} 14. Qxe4 {[%emt 0:00:58]} Nf6 {[%emt 0:19:57]} 15. Qe2 {[%emt 0:05:59]} Rfd8 {[%emt 0:00:09]} 16. Nd2 {[%emt 0:10:02]} c5 {[%emt 0:01:12]} 17. Bxb7 {[%emt 0:00:22]} Qxb7 {[%emt 0:00:10]} 18. dxc5 {[%emt 0:00:10]} Rxc5 {[%emt 0:01:31]} 19. Bxf6 {[%emt 0:01:36]} Bxf6 {[%emt 0:02:30]} 20. Ne4 {[%emt 0:00:14]} Rcc8 {[%emt 0:03:21]} 21. Nd6 {[%emt 0:00:31]} Qc6 {[%emt 0:00:16]} 22. Nxc8 {[%emt 0:00:09]} Qxc8 {[%emt 0:00:50]} 23. Rxd8+ {[%emt 0:00:19]} Qxd8 {[%emt 0:00:18]} 24. Rd1 {[%emt 0:00:07]} Qe7 {[%emt 0:00:27]} 25. Qd3 {[%emt 0:02:34]} h5 {[%emt 0:00:34]} 26. Qd6 {[%emt 0:02:35]} Qb7 {[%emt 0:00:25]} 27. Qf4 {[%emt 0:04:58]} h4 {[%emt 0:00:26]} 28. gxh4 {[%emt 0:00:15]} Qa6 {[%emt 0:00:43]} 29. a4 {[%emt 0:00:30]} Qa5 {[%emt 0:00:15]} 30. Qg4 {[%emt 0:04:58]} Qc3 {[%emt 0:00:44]} 31. Qg3 {[%emt 0:02:14]} Qc2 {[%emt 0:00:09]} 32. Qd3 {[%emt 0:00:27]} Qb2 {[%emt 0:00:13]} 33. h5 {[%emt 0:03:02]} Qe5 {[%emt 0:00:12]} 34. Qf3 {[%emt 0:00:18]} Qg5+ {[%emt 0:01:24]} 35. Kh1 {[%emt 0:00:15]} Be5 {[%emt 0:00:36]} 36. Rd7 {[%emt 0:02:11]} Qc1+ {[%emt 0:00:37]} 37. Qd1 {[%emt 0:01:09]} Qf4 {[%emt 0:00:18]} 38. Rd8+ {[%emt 0:00:05]} Kh7 {[%emt 0:00:15]} 39. Qd3+ {[%emt 0:00:33]} f5 {[%emt 0:00:25]} 40. Kg2 {[%emt 0:03:10]} Qxh2+ {[%emt 0:00:47]} 41. Kf1 {[%emt 0:30:12]} Qxh5 {[%emt 0:09:04]} 42. Qe3 {[%emt 0:00:00]} Bf6 {[%emt 0:18:50]} 43. Rd3 {[%emt 0:00:00]} e5 {[%emt 0:02:36]} 44. Qf3 {[%emt 0:00:00]} Qg5 {[%emt 0:00:53]} 45. Qh1+ {[%emt 0:00:00]} Kg8 {[%emt 0:00:12]} 46. Qa8+ {[%emt 0:00:00]} Kf7 {[%emt 0:01:11]} 47. Qd5+ {[%emt 0:00:00]} Kf8 {[%emt 0:00:57]} 48. Qd6+ {[%emt 0:00:00]} Kf7 {[%emt 0:00:31]} 49. Qc7+ {[%emt 0:00:00]} Kf8 {[%emt 0:00:29]} 50. Qb8+ {[%emt 0:03:10]} Kf7 {[%emt 0:00:01]} 51. Qxa7+ {[%emt 0:00:45]} Be7 {[%emt 0:00:04]} 52. Qxb6 {[%emt 0:01:03]} f4 {[%emt 0:01:09]} 53. Qc6 {[%emt 0:00:27]} Qf5 {[%emt 0:00:33]} 54. Qd7 {[%emt 0:00:24]} Qh5 {[%emt 0:00:43]} 55. Qd5+ {[%emt 0:00:29]} Kf6 {[%emt 0:01:40]} 56. a5 {[%emt 0:00:42]} Qf5 {[%emt 0:00:01]} 57. a6 {[%emt 0:00:10]} Bd6 {[%emt 0:02:21]} 1-0

[Event "Reykjavik Open 2025"]
[Site "Reykjavik"]
[Date "2025.04.10"]
[Round "2.31"]
[White "Williams, Simon K"]
[Black "Dauth, Benjamin"]
[Result "1-0"]
[Annotator "RC"]
[ECO "B08"]
[WhiteElo "2451"]
[BlackElo "2228"]
[PlyCount "45"]
[EventDate "2025.04.09"]
[EventType "swiss"]
[EventCountry "ISL"]
[SourceTitle "playchess.com"]
[Source "ChessBase"]
[SourceQuality "1"]
[TimeControl "40/5400+30:1800+30"]

1. d4 {[%emt 0:00:09]} Nf6 {[%emt 0:00:16]} 2. Nf3 {[%emt 0:01:16]} g6 {[%emt 0:00:06]} 3. Nc3 {[%emt 0:00:58]} Bg7 {[%emt 0:00:26]} 4. e4 {[%emt 0:02:24]} d6 {[%emt 0:00:10]} 5. Bf4 {[%emt 0:00:35]} O-O {[%emt 0:01:43]} 6. Qd2 {[%emt 0:00:19]} c6 {[%emt 0:01:15]} 7. Bh6 {[%emt 0:05:42]} Nbd7 {[%emt 0:00:20]} 8. O-O-O {[%emt 0:16:29]} b5 {[%emt 0:04:42]} 9. Bxg7 {[%emt 0:00:51]} Kxg7 {[%emt 0:00:35]} 10. e5 {[%emt 0:00:07]} Ne8 {[%emt 0:09:48]} 11. h4 {[%emt 0:04:58]} h5 {[%emt 0:00:28]} 12. g4 {[%emt 0:02:51]} hxg4 {[%emt 0:05:03]} 13. h5 {[%emt 0:00:41]} Rh8 {[%emt 0:01:02]} 14. Bd3 {[%emt 0:00:12]} Nc7 {[%emt 0:09:47]} 15. hxg6 {[%emt 0:01:32]} f6 {[%emt 0:01:51]} 16. exd6 {[%emt 0:12:28]} exd6 {[%emt 0:01:38]} 17. Ne4 {[%emt 0:09:51]} Nb6 {[%emt 0:04:57]} 18. Ng3 {[%emt 0:01:11]} Nc4 {[%emt 0:03:09]} 19. Qe2 {[%emt 0:07:30]} gxf3 {[%emt 0:03:20]} 20. Qxf3 {[%emt 0:00:16]} Nd5 {[%emt 0:04:05]} 21. Rxh8 {[%emt 0:01:16]} Qxh8 {[%emt 0:00:15]} 22. Rh1 {[%emt 0:00:11]} Qg8 {[%emt 0:04:56]} 23. Nh5+ {[%emt 0:00:50]} 1-0

[Event "Reykjavik Open 2025"]
[Site "Reykjavik"]
[Date "2025.04.10"]
[Round "2.32"]
[White "Kavutskiy, Kostya"]
[Black "Lu, Shanglei"]
[Result "0-1"]
[Annotator "TA"]
[ECO "B88"]
[WhiteElo "2351"]
[BlackElo "2618"]
[PlyCount "66"]
[EventDate "2025.04.09"]
[EventType "swiss"]
[EventCountry "ISL"]
[SourceTitle "playchess.com"]
[Source "ChessBase"]
[SourceQuality "1"]
[TimeControl "40/5400+30:1800+30"]

{[%evp 18,66,27,0,9,-1,0,-37,-42,-49,-36,-146,-98,-210,-194,-199,-184,-200,-203,-211,-215,-204,-213,-211,-207,-212,-206,-237,-243,-252,-245,-243,-235,-301,-285,-308,-309,-331,-291,-401,-411,-404,-412,-415,-414,-425,-424,-430,-416,-422,-421]} 1. e4 {[%emt 0:00:28]} c5 {[%emt 0:01:19]} 2. Nf3 {[%emt 0:00:09]} d6 {[%emt 0:02:25]} 3. d4 {[%emt 0:00:18]} cxd4 {[%emt 0:00:07]} 4. Nxd4 {[%emt 0:00:17]} Nf6 {[%emt 0:00:05]} 5. Nc3 {[%emt 0:00:09]} a6 {[%emt 0:00:35]} 6. Bc4 {[%emt 0:02:30]} e6 {[%emt 0:01:11]} 7. Be3 {[%emt 0:00:29]} Nc6 {[%emt 0:17:19]} 8. Bb3 {[%emt 0:02:06]} Na5 {[%emt 0:03:55]} 9. f4 {[%emt 0:03:03]} Qc7 {[%emt 0:04:24]} 10. Qf3 {[%emt 0:20:23]} b5 {[%emt 0:02:32] Against Ba4. B88: Sicilian: Sozin Attack.} 11. a3 {[%emt 0:01:30]} Bb7 {[%emt 0:03:07]} 12. g4 {[%emt 0:01:25]} d5 $146 {[%emt 0:12:39] Black is slightly better.} (12... Nxb3 13. Nxb3 d5 14. Rg1 Nxe4 15. Nxe4 dxe4 16. Qf2 Rc8 17. O-O-O Bd5 18. Kb1 Be7 {0-1 Abdulla,K (2029)-Tsatsalashvili,K (2271) EU-ch U16 Girls 18th 2008 (8)}) 13. e5 {[%emt 0:04:00]} Nd7 {[%emt 0:00:06]} 14. Rd1 {[%emt 0:04:47] [#]} ({White should play} 14. g5 $15) 14... Bxa3 {[%emt 0:03:53]} (14... Nc4 $142 $1 {[%mdl 512]} 15. Bc1 O-O-O) 15. Nxd5 {[%emt 0:26:43] [#]} (15. Ncxb5 $17 Bb4+ 16. Nc3 (16. c3 axb5 17. cxb4 Nxb3 $17)) 15... Bb4+ $1 $19 {[%emt 0:04:20]} 16. c3 {[%emt 0:03:58]} (16. Nxb4 $2 Bxf3 17. Nxf3 Nxb3 18. cxb3 Qa5 $19) 16... exd5 {[%emt 0:00:58]} 17. Bxd5 {[%emt 0:04:39]} Bxd5 {[%emt 0:00:25]} 18. Qxd5 {[%emt 0:00:10]} Nb6 {[%emt 0:00:07]} 19. Nxb5 {[%emt 0:06:56]} Nxd5 {[%emt 0:02:32]} ({And not} 19... axb5 20. Bxb6 (20. Qxb5+ Qc6 $17) 20... Bxc3+ 21. bxc3 Qxc3+ 22. Kf2 $15) ({Weaker is} 19... Bxc3+ 20. bxc3 Nxd5 (20... axb5 21. Bxb6 Qxc3+ 22. Kf2 $11) 21. Nxc7+ Nxc7 22. Bb6 $11) 20. Nxc7+ {[%emt 0:00:07]} Nxc7 {[%emt 0:00:04]} 21. cxb4 {[%emt 0:00:11]} Nc4 {[%emt 0:01:24][%csl LRb2,LRe3]} 22. Bc5 {[%emt 0:03:22]} Nxb2 {[%emt 0:01:12]} 23. Rd2 {[%emt 0:00:26]} Nc4 {[%emt 0:01:03]} 24. Rc2 {[%emt 0:00:46]} Na3 {[%emt 0:00:14]} 25. Ra2 {[%emt 0:00:08]} Nab5 {[%emt 0:00:24]} 26. O-O {[%emt 0:00:30]} O-O-O {[%emt 0:01:52]} 27. f5 {[%emt 0:00:26]} Rhe8 {[%emt 0:01:11]} 28. e6 {[%emt 0:00:36]} fxe6 {[%emt 0:00:06]} 29. f6 {[%emt 0:00:18]} gxf6 {[%emt 0:00:05]} 30. Rxf6 {[%emt 0:00:09]} Nc3 {[%emt 0:01:19]} 31. Rc2 {[%emt 0:00:12]} Ne4 {[%emt 0:00:13]} 32. Rf7 {[%emt 0:01:17]} Nxc5 {[%emt 0:02:21]} 33. Rxc5 {[%emt 0:00:12]} Rd7 {[%emt 0:00:03] White got outplayed after the opening.   Weighted Error Value: White=0.32/Black=0.03 (flawless)   Mistake:       	White=2     	Black=1      Inaccurate:     	White=2     	---        OK:         	White=6     	Black=15     Best:        	White=1     	---        Strong:       	---       	Black=1} 0-1

[Event "Reykjavik Open 2025"]
[Site "Reykjavik"]
[Date "2025.04.10"]
[Round "2.33"]
[White "Niermann, Tristan"]
[Black "Petersen, Marcel"]
[Result "0-1"]
[Annotator "RC"]
[ECO "A13"]
[WhiteElo "2427"]
[BlackElo "2185"]
[PlyCount "104"]
[EventDate "2025.04.09"]
[EventType "swiss"]
[EventCountry "ISL"]
[SourceTitle "playchess.com"]
[Source "ChessBase"]
[SourceQuality "1"]
[TimeControl "40/5400+30:1800+30"]

1. c4 {[%emt 0:00:05]} e6 {[%emt 0:00:09]} 2. g3 {[%emt 0:00:05]} d5 {[%emt 0:00:22]} 3. Bg2 {[%emt 0:00:07]} d4 {[%emt 0:00:28]} 4. Nf3 {[%emt 0:01:18]} c5 {[%emt 0:00:32]} 5. e3 {[%emt 0:00:10]} Nc6 {[%emt 0:00:21]} 6. d3 {[%emt 0:01:49]} Nf6 {[%emt 0:02:22]} 7. exd4 {[%emt 0:00:25]} cxd4 {[%emt 0:00:11]} 8. O-O {[%emt 0:00:09]} Bd6 {[%emt 0:00:59]} 9. Bg5 {[%emt 0:00:10]} h6 {[%emt 0:02:31]} 10. Bxf6 {[%emt 0:01:47]} Qxf6 {[%emt 0:00:06]} 11. Nbd2 {[%emt 0:00:18]} Qe7 {[%emt 0:02:36]} 12. Re1 {[%emt 0:03:03]} O-O {[%emt 0:05:59]} 13. Nb3 {[%emt 0:01:09]} Qd8 {[%emt 0:09:20]} 14. Nbxd4 {[%emt 0:04:21]} Nxd4 {[%emt 0:00:38]} 15. Nxd4 {[%emt 0:00:05]} Bxg3 {[%emt 0:03:55]} 16. hxg3 {[%emt 0:00:13]} Qxd4 {[%emt 0:00:07]} 17. b3 {[%emt 0:04:46]} Rd8 {[%emt 0:03:21]} 18. Qh5 {[%emt 0:07:19]} Rb8 {[%emt 0:03:14]} 19. Rad1 {[%emt 0:01:43]} Bd7 {[%emt 0:03:54]} 20. Re4 {[%emt 0:01:42]} Qb2 {[%emt 0:01:15]} 21. Rde1 {[%emt 0:23:31]} Be8 {[%emt 0:07:04]} 22. Qa5 {[%emt 0:06:07]} Rxd3 {[%emt 0:04:51]} 23. Qxa7 {[%emt 0:01:21]} Rbd8 {[%emt 0:00:07]} 24. R4e2 {[%emt 0:10:06]} Rd2 {[%emt 0:01:57]} 25. Rxd2 {[%emt 0:03:33]} Qxd2 {[%emt 0:00:12]} 26. Qe3 {[%emt 0:01:19]} Qxe3 {[%emt 0:10:55]} 27. fxe3 {[%emt 0:01:53]} b6 {[%emt 0:01:09]} 28. Kf2 {[%emt 0:04:32]} Rd2+ {[%emt 0:00:30]} 29. Re2 {[%emt 0:00:05]} Rd1 {[%emt 0:00:04]} 30. Rc2 {[%emt 0:01:10]} Kf8 {[%emt 0:00:54]} 31. Ke2 {[%emt 0:02:05]} Rg1 {[%emt 0:00:59]} 32. Kf2 {[%emt 0:03:58]} Ra1 {[%emt 0:00:46]} 33. Rd2 {[%emt 0:03:20]} Ke7 {[%emt 0:00:21]} 34. Bf3 {[%emt 0:02:42]} f6 {[%emt 0:03:54]} 35. Bd1 {[%emt 0:01:21]} Bg6 {[%emt 0:02:05]} 36. g4 {[%emt 0:03:10]} Be4 {[%emt 0:04:17]} 37. Kg3 {[%emt 0:01:41]} f5 {[%emt 0:03:28]} 38. Kf4 {[%emt 0:02:09]} Kf6 {[%emt 0:01:14]} 39. gxf5 {[%emt 0:00:26]} Bxf5 {[%emt 0:00:18]} 40. e4 {[%emt 0:02:37]} g5+ {[%emt 0:00:55]} 41. Ke3 {[%emt 0:32:37]} Bg6 {[%emt 0:39:52]} 42. Kd4 {[%emt 0:00:00]} h5 {[%emt 0:00:00]} 43. e5+ {[%emt 0:00:00]} Ke7 {[%emt 0:00:00]} 44. Bf3 {[%emt 0:00:00]} g4 {[%emt 0:00:00]} 45. Bc6 {[%emt 0:00:00]} Re1 {[%emt 0:00:00]} 46. b4 {[%emt 0:00:00]} g3 {[%emt 0:00:00]} 47. b5 {[%emt 0:00:00]} h4 {[%emt 0:00:00]} 48. a4 {[%emt 0:00:00]} h3 {[%emt 0:00:00]} 49. a5 {[%emt 0:00:00]} Be4 {[%emt 0:00:00]} 50. Kc3 {[%emt 0:00:00]} g2 {[%emt 0:00:00]} 51. Rd7+ {[%emt 0:00:00]} Kf8 {[%emt 0:00:00]} 52. axb6 {[%emt 0:01:17]} g1=Q {[%emt 0:00:00]} 0-1

[Event "Reykjavik Open 2025"]
[Site "Reykjavik"]
[Date "2025.04.10"]
[Round "2.34"]
[White "Chaney, Ari"]
[Black "Saine, Zachary"]
[Result "1/2-1/2"]
[Annotator "NA"]
[ECO "C70"]
[WhiteElo "1798"]
[BlackElo "2019"]
[PlyCount "184"]
[EventDate "2025.04.09"]
[EventType "swiss"]
[EventCountry "ISL"]
[SourceTitle "playchess.com"]
[Source "ChessBase"]
[SourceQuality "1"]
[TimeControl "40/5400+30:1800+30"]

1. e4 {[%emt 0:00:12]} e5 {[%emt 0:00:05]} 2. Nf3 {[%emt 0:00:09]} Nc6 {[%emt 0:00:05]} 3. Bb5 {[%emt 0:00:12]} a6 {[%emt 0:00:07]} 4. Ba4 {[%emt 0:00:12]} Nf6 {[%emt 0:00:08]} 5. d3 {[%emt 0:00:04]} d6 {[%emt 0:00:32]} 6. O-O {[%emt 0:01:09]} b5 {[%emt 0:00:41]} 7. Bb3 {[%emt 0:00:04]} Na5 {[%emt 0:00:33]} 8. c3 {[%emt 0:01:59]} Nxb3 {[%emt 0:00:23]} 9. axb3 {[%emt 0:01:19]} c5 {[%emt 0:04:17]} 10. c4 {[%emt 0:05:59]} b4 {[%emt 0:06:21]} 11. h3 {[%emt 0:04:36]} h6 {[%emt 0:01:19]} 12. Nh2 {[%emt 0:05:54]} g6 {[%emt 0:14:56]} 13. Re1 {[%emt 0:05:25]} Bg7 {[%emt 0:00:23]} 14. Nd2 {[%emt 0:00:30]} O-O {[%emt 0:00:22]} 15. Ndf1 {[%emt 0:00:19]} Nh5 {[%emt 0:00:59]} 16. Nf3 {[%emt 0:08:12]} Bb7 {[%emt 0:06:10]} 17. Ne3 {[%emt 0:03:08]} Nf4 {[%emt 0:02:10]} 18. Kh2 {[%emt 0:00:51]} f5 {[%emt 0:02:34]} 19. Nd5 {[%emt 0:01:15]} g5 {[%emt 0:15:17]} 20. g3 {[%emt 0:12:19]} Ne6 {[%emt 0:12:15]} 21. Kg2 {[%emt 0:05:53]} Qe8 {[%emt 0:01:37]} 22. Qe2 {[%emt 0:05:36]} Kh8 {[%emt 0:02:49]} 23. Rh1 {[%emt 0:05:57]} Qg6 {[%emt 0:03:09]} 24. Ne7 {[%emt 0:06:24]} Qh7 {[%emt 0:00:56]} 25. Nd5 {[%emt 0:02:38]} Rae8 {[%emt 0:06:44]} 26. Bd2 {[%emt 0:04:02]} Qg6 {[%emt 0:00:29]} 27. g4 {[%emt 0:05:41]} fxg4 {[%emt 0:03:49]} 28. hxg4 {[%emt 0:00:44]} Rf7 {[%emt 0:00:35]} 29. Be3 {[%emt 0:01:56]} Ref8 {[%emt 0:00:21]} 30. Rh3 {[%emt 0:00:34]} Bc8 {[%emt 0:04:54]} 31. Nh2 {[%emt 0:01:07]} Bb7 {[%emt 0:01:44]} 32. f3 {[%emt 0:01:34]} Nd4 {[%emt 0:01:53]} 33. Bxd4 {[%emt 0:01:44]} exd4 {[%emt 0:00:04]} 34. Nf1 {[%emt 0:01:11]} Be5 {[%emt 0:01:59]} 35. Nd2 {[%emt 0:00:37]} Kg7 {[%emt 0:00:19]} 36. Rah1 {[%emt 0:00:46]} Rh8 {[%emt 0:00:26]} 37. Ra1 {[%emt 0:01:15]} h5 {[%emt 0:02:22]} 38. gxh5 {[%emt 0:00:36]} Rxh5 {[%emt 0:00:07]} 39. Rxh5 {[%emt 0:00:02]} Qxh5 {[%emt 0:00:07]} 40. Rh1 {[%emt 0:00:24]} Qg6 {[%emt 0:00:12]} 41. Nf1 {[%emt 0:33:43]} g4 {[%emt 0:22:41]} 42. fxg4 {[%emt 0:00:00]} Bc8 {[%emt 0:00:09]} 43. Rh4 {[%emt 0:00:00]} Qg5 {[%emt 0:01:54]} 44. Kh3 {[%emt 0:00:00]} Qc1 {[%emt 0:02:56]} 45. Kg2 {[%emt 0:00:00]} Kg8 {[%emt 0:02:50]} 46. Nh2 {[%emt 0:00:00]} Rg7 {[%emt 0:04:17]} 47. Qf2 {[%emt 0:00:00]} Rf7 {[%emt 0:01:35]} 48. Qe2 {[%emt 0:02:47]} Qg5 {[%emt 0:01:33]} 49. Rh5 {[%emt 0:02:18]} Qg6 {[%emt 0:00:02]} 50. Rh4 {[%emt 0:00:10]} Rh7 {[%emt 0:01:47]} 51. Rxh7 {[%emt 0:01:11]} Qxh7 {[%emt 0:00:02]} 52. Nf1 {[%emt 0:02:22]} Qh4 {[%emt 0:00:44]} 53. Kg1 {[%emt 0:01:29]} Bxg4 {[%emt 0:01:03]} 54. Qg2 {[%emt 0:00:01]} Kh8 {[%emt 0:00:40]} 55. Qf2 {[%emt 0:00:24]} Qg5 {[%emt 0:00:55]} 56. Qg2 {[%emt 0:00:53]} Kg7 {[%emt 0:00:23]} 57. Nh2 {[%emt 0:00:20]} Qc1+ {[%emt 0:00:37]} 58. Nf1 {[%emt 0:00:19]} Qd1 {[%emt 0:00:37]} 59. Ne7 {[%emt 0:00:47]} Kf6 {[%emt 0:00:00]} 60. Nf5 {[%emt 0:00:16]} Bxf5 {[%emt 0:00:23]} 61. exf5 {[%emt 0:00:05]} Kxf5 {[%emt 0:00:16]} 62. Qe4+ {[%emt 0:00:28]} Kg5 {[%emt 0:00:54]} 63. Qg2+ {[%emt 0:00:05]} Qg4 {[%emt 0:00:18]} 64. Kf2 {[%emt 0:00:32]} Bf4 {[%emt 0:00:49]} 65. Qd5+ {[%emt 0:01:23]} Qf5 {[%emt 0:00:30]} 66. Qxf5+ {[%emt 0:00:40]} Kxf5 {[%emt 0:00:04]} 67. Ke2 {[%emt 0:00:38]} Bc1 {[%emt 0:00:10]} 68. Ng3+ {[%emt 0:00:29]} Ke5 {[%emt 0:00:05]} 69. Ne4 {[%emt 0:00:03]} Bxb2 {[%emt 0:00:15]} 70. Kd2 {[%emt 0:00:11]} Bc3+ {[%emt 0:00:17]} 71. Kc2 {[%emt 0:00:02]} Be1 {[%emt 0:00:25]} 72. Ng5 {[%emt 0:01:16]} Bg3 {[%emt 0:01:03]} 73. Nf7+ {[%emt 0:00:48]} Ke6 {[%emt 0:00:10]} 74. Ng5+ {[%emt 0:00:22]} Kf5 {[%emt 0:00:14]} 75. Ne4 {[%emt 0:00:20]} Bh2 {[%emt 0:00:17]} 76. Nf2 {[%emt 0:00:07]} Be5 {[%emt 0:02:03]} 77. Nd1 {[%emt 0:00:11]} Bg3 {[%emt 0:00:30]} 78. Nb2 {[%emt 0:00:06]} d5 {[%emt 0:00:28]} 79. cxd5 {[%emt 0:00:15]} Ke5 {[%emt 0:00:07]} 80. Nc4+ {[%emt 0:00:19]} Kxd5 {[%emt 0:00:07]} 81. Nb6+ {[%emt 0:01:21]} Kc6 {[%emt 0:00:10]} 82. Na4 {[%emt 0:00:24]} Be1 {[%emt 0:00:35]} 83. Kd1 {[%emt 0:00:09]} Bc3 {[%emt 0:00:11]} 84. Ke2 {[%emt 0:00:21]} Kd5 {[%emt 0:01:53]} 85. Nb6+ {[%emt 0:00:11]} Ke5 {[%emt 0:00:49]} 86. Kf3 {[%emt 0:00:14]} a5 {[%emt 0:00:33]} 87. Nc4+ {[%emt 0:00:29]} Kd5 {[%emt 0:00:38]} 88. Nxa5 {[%emt 0:00:13]} Ke5 {[%emt 0:00:11]} 89. Nc4+ {[%emt 0:00:16]} Kf5 {[%emt 0:00:11]} 90. Nd6+ {[%emt 0:00:10]} Ke5 {[%emt 0:00:11]} 91. Nc4+ {[%emt 0:00:03]} Kf5 {[%emt 0:00:12]} 92. Nd6+ {[%emt 0:00:05]} Ke5 {[%emt 0:00:10]} 1/2-1/2

[Event "Reykjavik Open 2025"]
[Site "Reykjavik"]
[Date "2025.04.10"]
[Round "2.35"]
[White "Kadovic, Tamara"]
[Black "Arndt, Uwe"]
[Result "0-1"]
[Annotator "NA"]
[ECO "B12"]
[WhiteElo "1612"]
[BlackElo "1956"]
[PlyCount "60"]
[EventDate "2025.04.09"]
[EventType "swiss"]
[EventCountry "ISL"]
[SourceTitle "playchess.com"]
[Source "ChessBase"]
[SourceQuality "1"]
[TimeControl "40/5400+30:1800+30"]

1. e4 {[%emt 0:00:09]} c6 {[%emt 0:00:07]} 2. d4 {[%emt 0:01:04]} d5 {[%emt 0:00:06]} 3. f3 {[%emt 0:00:36]} e6 {[%emt 0:00:12]} 4. Nc3 {[%emt 0:01:04]} Bb4 {[%emt 0:00:25]} 5. Bd2 {[%emt 0:02:17]} Ne7 {[%emt 0:00:21]} 6. a3 {[%emt 0:05:37]} Ba5 {[%emt 0:03:49]} 7. Nh3 {[%emt 0:06:06]} Nd7 {[%emt 0:13:48]} 8. Bd3 {[%emt 0:07:06]} O-O {[%emt 0:03:50]} 9. e5 {[%emt 0:02:28]} Nf5 {[%emt 0:06:37]} 10. Bg5 {[%emt 0:06:17]} f6 {[%emt 0:03:35]} 11. exf6 {[%emt 0:00:39]} Nxf6 {[%emt 0:00:55]} 12. O-O {[%emt 0:00:52]} Nxd4 {[%emt 0:03:54]} 13. Kh1 {[%emt 0:01:11]} e5 {[%emt 0:01:10]} 14. Nf2 {[%emt 0:05:14]} Qd6 {[%emt 0:04:49]} 15. g3 {[%emt 0:11:39]} Ne6 {[%emt 0:11:24]} 16. Bd2 {[%emt 0:03:26]} Bc7 {[%emt 0:04:43]} 17. Qe2 {[%emt 0:06:56]} Bd7 {[%emt 0:02:34]} 18. b4 {[%emt 0:03:23]} Rae8 {[%emt 0:05:06]} 19. Na4 {[%emt 0:02:35]} b6 {[%emt 0:00:56]} 20. Rad1 {[%emt 0:02:08]} c5 {[%emt 0:05:00]} 21. c4 {[%emt 0:00:50]} Bxa4 {[%emt 0:00:44]} 22. Rc1 {[%emt 0:01:01]} Nd4 {[%emt 0:01:05]} 23. Qe1 {[%emt 0:01:19]} Nxf3 {[%emt 0:00:28]} 24. Qe3 {[%emt 0:00:55]} Nxd2 {[%emt 0:03:24]} 25. Qxd2 {[%emt 0:00:11]} e4 {[%emt 0:00:30]} 26. b5 {[%emt 0:02:25]} exd3 {[%emt 0:01:48]} 27. Qxd3 {[%emt 0:01:03]} dxc4 {[%emt 0:00:23]} 28. Qxc4+ {[%emt 0:00:28]} Qd5+ {[%emt 0:00:06]} 29. Kg1 {[%emt 0:00:28]} Qxc4 {[%emt 0:00:10]} 30. Rxc4 {[%emt 0:00:08]} Bxb5 {[%emt 0:00:06]} 0-1

[Event "Reykjavik Open 2025"]
[Site "Reykjavik"]
[Date "2025.04.10"]
[Round "2.36"]
[White "Burgalat, Eliot"]
[Black "Terrieux, Kevin"]
[Result "0-1"]
[Annotator "RC"]
[ECO "B56"]
[WhiteElo "2119"]
[BlackElo "2394"]
[PlyCount "52"]
[EventDate "2025.04.09"]
[EventType "swiss"]
[EventCountry "ISL"]
[SourceTitle "playchess.com"]
[Source "ChessBase"]
[SourceQuality "1"]
[TimeControl "40/5400+30:1800+30"]

1. e4 {[%emt 0:00:03]} c5 {[%emt 0:04:25]} 2. Nf3 {[%emt 0:00:06]} d6 {[%emt 0:00:15]} 3. d4 {[%emt 0:00:06]} cxd4 {[%emt 0:00:05]} 4. Nxd4 {[%emt 0:00:02]} Nf6 {[%emt 0:00:11]} 5. Nc3 {[%emt 0:00:05]} Bd7 {[%emt 0:00:10]} 6. f3 {[%emt 0:01:42]} e5 {[%emt 0:00:37]} 7. Nb3 {[%emt 0:02:24]} Be7 {[%emt 0:00:55]} 8. Be3 {[%emt 0:00:30]} Be6 {[%emt 0:00:18]} 9. Bb5+ {[%emt 0:05:00]} Nbd7 {[%emt 0:04:13]} 10. O-O {[%emt 0:05:52]} a6 {[%emt 0:13:46]} 11. Bxd7+ {[%emt 0:04:11]} Qxd7 {[%emt 0:03:38]} 12. Qd2 {[%emt 0:00:48]} h6 {[%emt 0:07:14]} 13. Rfd1 {[%emt 0:18:03]} O-O {[%emt 0:05:01]} 14. a4 {[%emt 0:08:38]} Rac8 {[%emt 0:03:20]} 15. a5 {[%emt 0:01:33]} Rc4 {[%emt 0:10:58]} 16. Nc1 {[%emt 0:04:54]} Rfc8 {[%emt 0:02:17]} 17. N1a2 {[%emt 0:01:31]} Qc6 {[%emt 0:08:24]} 18. Rac1 {[%emt 0:10:57]} Bd8 {[%emt 0:02:21]} 19. Qxd6 {[%emt 0:14:21]} Bxa5 {[%emt 0:02:32]} 20. Qd3 {[%emt 0:03:01]} Bb6 {[%emt 0:04:03]} 21. Nd5 {[%emt 0:01:38]} Bxd5 {[%emt 0:01:03]} 22. exd5 {[%emt 0:00:39]} Nxd5 {[%emt 0:00:08]} 23. Bxb6 {[%emt 0:01:15]} Qxb6+ {[%emt 0:00:08]} 24. Kh1 {[%emt 0:00:05]} Nf4 {[%emt 0:00:34]} 25. Qb3 {[%emt 0:02:24]} Qf2 {[%emt 0:01:06]} 26. Rg1 {[%emt 0:00:10]} Ne2 {[%emt 0:00:41]} 0-1